Cogmind - Beta 9.2 @@@ ROGUE MODE // 2019.11.27 @ 12:35:12 Player: DrZettl Result: Destroyed by G-47 Trooper with Particle Gun Performance ------------- Evolutions (1) 500 Regions Visited (2) 400 Robots Destroyed (16) 80 Value Destroyed (411) 411 Prototype IDs (2) 40 Alien Tech Used (0) 0 Bonus (0) 0 TOTAL SCORE: 1431 Bonus ------- None Cogmind --------- Core Integrity 0/400 Matter 300/300 Energy 100/100 System Corruption 0% Temperature Cool (9) Movement Rolling (110) Ox2 Location -9/Materials Parts ------- > --- POWER (1) -------- (None) > --- PROPULSION (2) --- Armored Wheel > --- UTILITY (4) ------ High-capacity Storage Unit Improved Targeting Computer > --- WEAPON (2) ------- Heavy Hammer > --- INVENTORY (12) --- Ion Engine Armored Wheel High-capacity Storage Unit High-capacity Storage Unit Improved Targeting Computer Improved Datajack Peak State ------------ > --- POWER ------------ Light Nuclear Core > --- PROPULSION ------- Wheel Wheel > --- UTILITY ---------- High-capacity Storage Unit Advanced Sensor Array Improved Targeting Computer System Shield > --- WEAPON ----------- Light Assault Rifle Heavy Hammer > --- INVENTORY -------- Ion Engine Light Ion Engine Armored Wheel Armored Wheel Armored Wheel Armored Wheel High-capacity Storage Unit High-capacity Storage Unit Compact Matter Pod Improved Targeting Computer Light Armor Plating Improved Datajack [Rating: 19] Favorites ----------- Power Light Ion Engine Engine Light Ion Engine Power Core Light Nuclear Core Propulsion Wheel Wheel Wheel Utility High-capacity Storage Unit Device Advanced Sensor Array Storage High-capacity Storage Unit Processor Improved Targeting Computer Hackware System Shield Protection Propulsion Shielding Weapon Light Assault Rifle Energy Gun Medium Laser Ballistic Gun Light Assault Rifle Impact Weapon Heavy Hammer Build | -11 -10 -9 ------- Run | Scr Mat Mat Slots Evolved 2 | . . 2 Power . | . . . Propulsion . | . . . Utility 2 | . . 2 Weapon . | . . . Parts Attached 32 | 6 10 16 Power 4 | 1 1 2 Engine 3 | 1 1 1 Core 1 | . . 1 Reactor . | . . . Propulsion 8 | 2 2 4 Treads . | . . . Leg . | . . . Wheel 8 | 2 2 4 Hover . | . . . Flight . | . . . Utility 11 | 1 4 6 Device 1 | . . 1 Storage 5 | 1 2 2 Processor 2 | . 1 1 Hackware 1 | . . 1 Protection 2 | . 1 1 Artifact . | . . . Weapon 9 | 2 3 4 Energy Gun 1 | 1 . . Energy Cannon . | . . . Ballistic Gun 6 | 1 2 3 Ballistic Cannon . | . . . Launcher . | . . . Special Weapon . | . . . Impact Weapon 2 | . 1 1 Slashing Weapon . | . . . Piercing Weapon . | . . . Special Melee Weapon . | . . . Unidentified Prototypes . | . . . Parts Lost 15 | . . 15 Power 2 | . . 2 Propulsion 5 | . . 5 Utility 4 | . . 4 Weapon 4 | . . 4 Highest Loss Streak 7 | . . 7 Average Slot Usage (%) 95 | . 97 93 Engine 8 | . 14 5 Core 3 | . . 5 Wheel 23 | . 28 21 Device 5 | . . 8 Storage 14 | . 19 11 Processor 9 | . 5 11 Hackware 5 | . . 8 Ballistic Gun 17 | . 25 12 Impact Weapon 5 | . 1 8 Naked Turns . | . . . Heaviest Build 43 | 11 42 43 Greatest Support 26 | 26 26 24 Greatest Overweight (x) 12 | . 1 12 Average Overweight (x) 1 | . . 1 Largest Inventory Capacity 14 | 6 14 12 Average Capacity 11 | 4 11 12 Most Carried 12 | 2 12 12 Average Carried 9 | 1 8 11 Final Capacity 12 | 6 12 12 Final Carried 12 | 2 12 6 Class Distribution -------------------- 100% | Mutant Dominant Class ---------------- Mutant | -10/Materials Mutant | -9/Materials Resources | -11 -10 -9 ----------- Run | Scr Mat Mat Matter Collected 589 | 163 73 353 Remotely . | . . . Salvage Created 529 | . 77 452 Parts 34 | . 13 21 Haulers Intercepted 1 | . . 1 Recyclers Shooed 1 | . . 1 Parts Field Recycled . | . . . Retrieved Matter . | . . . Parts Self-Destructed . | . . . Prevented . | . . . Kills | -11 -10 -9 ------- Run | Scr Mat Mat Combat Hostiles Destroyed 14 | . 5 9 Melee 2 | . . 2 Guns 9 | . 5 4 Classes Destroyed 5 | . 1 4 Builder 1 | . . 1 Hauler 1 | . . 1 Swarmer 5 | . 5 . Grunt 7 | . . 7 Sentry 2 | . . 2 Best Kill Streak 3 | . 3 3 Combat Bots Only 3 | . 3 3 Max Kills in Single Turn 2 | . 2 1 Gunslinging 1 | . 1 . Exploded . | . . . Melee 1 | . . 1 Uniques/NPCs Destroyed . | . . . Combat | -11 -10 -9 -------- Run | Scr Mat Mat Damage Taken 1602 | . 147 1455 Core 418 | . 14 404 Absorbed by Shields . | . . . Core Remaining (%) 97 | 100 94 . Volleys Fired 40 | . 12 28 Largest 2 | . 2 2 Hottest 70 | . 70 40 Shots Fired 70 | . 22 48 Gun 70 | . 22 48 Cannon . | . . . Launcher . | . . . Special . | . . . Kinetic 65 | . 17 48 Thermal 5 | . 5 . Explosive . | . . . Electromagnetic . | . . . Robot Hit Streak 18 | . 7 18 Robot Miss Streak 3 | . 3 1 Penetration Max . | . . . Secondary Targets 1 | . 1 . Max Gunslinging Chain 1 | . 1 . Shots Hit Robots 77 | . 14 63 Core Hits 25 | . 6 19 Critical Hits . | . . . Critical Kills . | . . . Critical Parts Destroyed . | . . . Melee Attacks 55 | . 6 49 Impact 55 | . 6 49 Slashing . | . . . Piercing . | . . . Sneak Attacks 2 | . . 2 Combat Hostiles . | . . . Follow-up Attacks . | . . . Damage Inflicted 1262 | . 132 1130 Guns 534 | . 132 402 Cannons . | . . . Explosions . | . . . Melee 728 | . . 728 Ramming . | . . . Kinetic 497 | . 95 402 Thermal 37 | . 37 . Explosive . | . . . Electromagnetic . | . . . Impact 728 | . . 728 Slashing . | . . . Piercing . | . . . Highest Corruption . | . . . Average Corruption . | . . . Corruption Purged . | . . . Overload Shots . | . . . Overflow Damage 223 | . . 223 Projectiles . | . . . Explosions . | . . . Melee 223 | . . 223 Knockbacks 5 | . . 5 Impact 5 | . . 5 Kinetic . | . . . Secondary . | . . . Self-Inflicted Damage . | . . . Shots . | . . . Rammed . | . . . Targets Rammed . | . . . Kicked . | . . . Crushed . | . . . Highest Temperature 65 | . 65 21 Average Temperature 19 | . 39 7 Received Heat Transfer 786 | . . 786 Siege Activations . | . . . Robots Corrupted . | . . . Combat Hostiles . | . . . Parts Fried 5 | . . 5 Impact Corruptions 10 | . . 10 Robots Melted . | . . . Combat Hostiles . | . . . Parts Melted . | . . . Heat Transferred 111 | . 111 . Parts Sabotaged . | . . . Parts Stolen . | . . . Parts Stripped . | . . . Power Chain Reactions . | . . . Missiles Intercepted . | . . . Alert | -11 -10 -9 ------- Run | Scr Mat Mat Peak Influence 233 | . 146 233 Average Influence 98 | . 108 99 Maximum Alert Level 1 | . . 1 Low Security (%) 96 | 100 100 93 Level 1 3 | . . 6 Level 2 . | . . . Level 3 . | . . . Level 4 . | . . . Level 5 . | . . . High Security . | . . . Max Security . | . . . Squads Dispatched 3 | . 1 2 Investigation 2 | . 1 1 Extermination . | . . . Reinforcement 1 | . . 1 Assault . | . . . Garrison . | . . . Intercept . | . . . Construction Impeded . | . . . Haulers Reinforced . | . . . Stealth | -11 -10 -9 --------- Run | Scr Mat Mat Distress Signals 1 | . . 1 Communications Jammed . | . . . Distress Signals . | . . . Times Spotted 31 | . 12 19 Peak Tracking Total 10 | . 5 10 Tactical Retreats 2 | . 1 1 Traps | -11 -10 -9 ------- Run | Scr Mat Mat Traps Triggered 2 | . 1 1 Indirectly . | . . . Trap Hack Attempts . | . . . Triggered . | . . . Disarmed . | . . . Reprogrammed . | . . . Reused . | . . . Traps Extracted . | . . . Installed . | . . . Triggered . | . . . Machines | -11 -10 -9 ---------- Run | Scr Mat Mat Machines Disabled . | . . . Max in Single Turn . | . . . Machines Sabotaged . | . . . Garrisons Compromised . | . . . Overloaded Fab Kills . | . . . Fab Network Shutdowns . | . . . Hacking | -11 -10 -9 --------- Run | Scr Mat Mat Machines Accessed 6 | . 4 2 Terminals 5 | . 3 2 Fabricators . | . . . Repair Stations . | . . . Recycling Units 1 | . 1 . Scanalyzers . | . . . Garrison Access . | . . . Total Hacks 16 | . 12 4 Successful 11 | . 8 3 Failed 5 | . 4 1 Catastrophic . | . . . Database Lockouts . | . . . Manual 7 | . 4 3 Terminals 15 | . 11 4 Fabricators . | . . . Repair Stations . | . . . Recycling Units 1 | . 1 . Scanalyzers . | . . . Garrison Access . | . . . Terminal Hacks 7 | . 5 2 Robot Analysis 1 | . 1 . Prototype ID Bank 1 | . 1 . Branch Access Points 2 | . 1 1 Recall Investigation 2 | . 1 1 Hauler Manifests 1 | . 1 . Fabricator Hacks . | . . . Repair Station Hacks . | . . . Recycling Unit Hacks 1 | . 1 . Report Inventory 1 | . 1 . Scanalyzer . | . . . Garrison Access Hacks . | . . . Unauthorized Hacks 7 | . 5 2 Terminals 3 | . 2 1 Track 3 | . 2 1 Fabricators . | . . . Repair Stations . | . . . Recycling Units . | . . . Scanalyzers . | . . . Garrison Access . | . . . Data Cores Recovered . | . . . Used . | . . . Hacking Detections 4 | . 2 2 Full Trace Events 1 | . 1 . Feedback Events . | . . . Feedback Blocked . | . . . Robot Schematics Acquired . | . . . Robots Built . | . . . Matter . | . . . Time . | . . . Total Robot Build Rating . | . . . Part Schematics Acquired . | . . . Parts Built . | . . . Matter . | . . . Time . | . . . Total Part Build Rating . | . . . Parts Repaired . | . . . Time . | . . . Parts Recycled . | . . . Recycled Matter . | . . . Retrieved Matter . | . . . Retrieved Components . | . . . Parts Scanalyzed . | . . . Part Schematics Acquired . | . . . Parts Damaged . | . . . Bothacking | -11 -10 -9 ------------ Run | Scr Mat Mat Used RIF Installer . | . . . Robots Hacked . | . . . Non-combat . | . . . Combat . | . . . Robot Hacks Applied . | . . . Relay Couplers Released . | . . . Robots Rewired . | . . . Allies Hacked . | . . . Hacks Repelled . | . . . Allies | -11 -10 -9 -------- Run | Scr Mat Mat Total Allies . | . . . Largest Group . | . . . Highest-Rated Group . | . . . Highest-Rated Ally . | . . . Total Orders . | . . . Ally Attacks . | . . . Total Damage . | . . . Kills . | . . . Allies Corrupted . | . . . Allies Melted . | . . . Intel | -11 -10 -9 ------- Run | Scr Mat Mat Robot Analysis Total 1 | . 1 . Derelict Logs Recovered . | . . . Drone Launches . | . . . Drone Recoveries . | . . . Exploration | -11 -10 -9 ------------- Run | Scr Mat Mat Turns Passed 1015 | 46 376 593 Spaces Moved 567 | 42 262 263 Core 7 | 5 . 2 Treads . | . . . Legs . | . . . Wheels 560 | 37 262 261 Hover . | . . . Flight . | . . . Fastest Speed 50 | 50 90 90 Average Speed 96 | 84 96 97 Slowest Speed 650 | 90 100 650 Overloaded Moves . | . . . Propulsion Burnouts . | . . . Robots Hopped . | . . . Cave-ins Triggered . | . . . Exploration Rate (%) 29 | 4 53 30 Regions Visited 2 Branch Regions . Pre-discovered Areas . | . . . Known Exits Taken . | . . . Unknown Exits Taken 2 | 1 1 . Scrap Searched . | . . . Spaces Dug 8 | . 3 5 Terrain Destroyed 8 | . 3 5 Melee 8 | . 3 5 Projectile . | . . . AOE . | . . . Actions | -11 -10 -9 --------- Run | Scr Mat Mat Total 865 | 49 354 462 Wait 136 | . 39 97 Move 565 | 41 261 263 Hop . | . . . Pick Up 21 | 2 14 5 Fast Attach 14 | 6 5 3 Attach 12 | . 1 11 Detach 5 | . 3 2 Swap 6 | . 4 2 Drop 11 | . 9 2 Fire 40 | . 12 28 Melee 55 | . 6 49 Ram . | . . . Kick . | . . . Crush . | . . . Escape Stasis . | . . . Rewire . | . . . Trap . | . . . Miscellaneous . | . . . Route ------- -11/Scrapyard -10/Materials (discovered 3 exits: *Mat / *Min x2) -9/Materials (discovered 2 exits: Min x2) History --------- Turn | Location | Event 18 | -11/Scrapyard | Discovered new exit (range 14) 47 | -11/Scrapyard | Entered Materials 149 | -10/Materials | Identified exit to Mines 335 | -10/Materials | Build established: Mutant 397 | -10/Materials | Discovered new exit (range 15) 423 | -10/Materials | Entered another Materials area 423 | -9/Materials | Evolved 2 slots: Utility x2 593 | -9/Materials | Identified exit to Mines 810 | -9/Materials | Lost 3 parts (1n2w) 965 | -9/Materials | Core integrity fell below 50% 973 | -9/Materials | Lost 7 parts (1p2n3u1w) 995 | -9/Materials | Core integrity fell below 20% 1016 | -9/Materials | Destroyed by G-47 Trooper with Particle Gun Last Messages --------------- 00939_ G-34 Mercenary destroyed. 00940_ T-07 Excavator is excavating. 00940_ Wheel destroyed. 00942_ Lgt. Armor Plating destroyed. 00943_ Destroyed Heat Sink. 00943_ Destroyed Sml. Laser. 00943_ G-34 Mercenary system corrupted by crushing effect. 00943_ G-34 Mercenary knocked back. 00944_ G-34 Mercenary system terminally corrupted. 00944_ Ion Engine fried. 00944_ T-07 Excavator is excavating. 00945_ Acquired 37 matter. 00946_ U-05 Engineer lays Concrete. 00962_ G-34 Mercenary knocked back. 00975_ Lgt. Ion Engine destroyed. 00996_ Destroyed Sml. Laser. 00996_ G-34 Mercenary system corrupted by crushing effect. 01002_ G-47 Trooper knocked back. 01004_ Arm. Wheel destroyed. 01014_ Com. Matter Pod destroyed. Map ----- +----------------------------------------------------+ | ?????????????????????????????????????????????? | | ?????????????????????????????????????????????? | | ?????????????????????????????????????????????? | | ?????????????????????????????????????????????? | | ?????????????????????????????????????????????? | | ?????????????????????????????????????????????? | | ?????????????????????????????????????????????? | | ?????????????????????????????????????????????? | | ???###+????#?????????????????????????????????? | | ?? T ??? #?????????????? ??????????????????? | | ?? """ #?????????????? ??????????????????? | | ???= """ #?????????????? ??????????????????? | | ??? """ #?????????????? ??????????????????? | | ???? #?????????????? ??????????????????? | | ????? #?????????????# ??????????????????? | | ????? ??????????????# ??????????????????? | | ?????? ???????????????# #?????????????????? | | #######/##???????????????# +?????????????????? | | ##############??# #?????????????????? | | # #??# #?????????????????? | | # """ """ #??# ##+#??????????????? | | ###### + """ """ #??# #??????????????? | | ?????# # """ """ #### ######?????????? | | ?????# # + =%= #??? | | ?????# #################g##### ###?????????? | | ?????# #?????????????# @% g [#?????????????? | | ?????# #?????????????#! """ %+ #??????? | | ?????# #?????????????# """ *# # ????? | | ####?# +?????????????# """ #??????#??????? | | [!!#?# #?????????????# #?????????????? | | [! #?# #?????????????#########?????????????? | | !! #?# #???????????????????????????????????? | | #?# #???????????????????????????????????? | | #?# #???????????????????????????????????? | | #?# #???????????????????????????????????? | | +##### #???????????????????????????????????? | | #???????????????????????????????????? | | ##### #???????????????????????????????????? | | #?????? ###################?????????????????? | | #????? #?????????????????? | | #????? #?????????????????? | | #????? #?????????????????? | | #????###+#############+#####????????????????? | | #????# #####" #????????????????? | | #????# + + """ """ #????????????????? | | ##???# ###### """ """ #????????????????? | | ##### #????# """ """ #????????????????? | | + #????# """ """ #????????????????? | | ##### #????# """ """ #????????????????? | | ####### ######????# #????????????????? | +----------------------------------------------------+ Best States ------------- Heat Dissipation 28 Energy Generation 14 Energy Capacity 160 Matter Stores 334 Matter Capacity 450 Sight Range 16 Robot Scan Range 16 Terrain Scan Density 10 Armor Coverage 150 Propulsion Shielding 33 Evasion (%) 42 Targeting Accuracy 12 Defensive Hacking 10 Item Schematics ----------------- None Robot Schematics ------------------ None Fabricated ------------ Nothing Alien Tech Used ----------------- None Achievements -------------- None Challenges ------------ None Game ------ Seed DisruptorSkeletonBoregun Manual? 0 Play Time 00:14:05 Cumulative 58.9 hours Start 2019.11.27 @ 12:18:48 End 2019.11.27 @ 12:35:12 Sessions 1 Manual Loads 0 Difficulty Rogue Special Mode None Game No. 62 Rogue 62 Adventurer 0 Explorer 0 Win Type - Total 0 Types 0/0/0/0/0/0/0 Lore% 32 Gallery% 47 Achievement% 30 Wizard Run 0 Options --------- ASCII 0 Keyboard 0 Movement Numpad Keybinds 0 Fullscreen 1 Font 18/SmallcapsGlow Map View 76x50 Tactical HUD 1 Map Filters NONE Filters NONE Steam 1 RUN: d5c0d560-ff1c-4207-b1d0-7ac58638469e